Cogmind - Beta 14 @@@ ROGUE MODE // 2025.03.13 @ 22:37:13 Player: ywiktor Result: Destroyed by G-34 Mercenary with Small Laser Performance ------------- Evolutions (1) 500 Regions Visited (4) 800 Robots Destroyed (71) 355 Value Destroyed (1979) 1979 Prototype IDs (3) 60 Alien Tech Used (0) 0 Bonus (67) 67 TOTAL SCORE: 3761 Bonus ------- High Alert Combat Kills 8 Follower Combat Kills 59 Cogmind --------- Core Integrity 0/400 Matter 87/300 Energy 100/100 System Corruption 7% Temperature Cool (6) Movement Core (200) Ox3 Location -9/Storage Parts ------- > --- POWER (1) -------- (None) > --- PROPULSION (2) --- (None) > --- UTILITY (3) ------ Medium Storage Unit Transport Network Coupler > --- WEAPON (3) ------- (None) > --- INVENTORY (10) --- Ion Engine Light Nuclear Core Carbon-fiber Leg Advanced Targeting Computer Recoil Stabilizer Hacking Suite Beam Cannon Light Assault Rifle Peak State ------------ > --- POWER ------------ Cold Fusion Reactor > --- PROPULSION ------- Aluminum Leg Carbon-fiber Leg > --- UTILITY ---------- Medium Storage Unit Transport Network Coupler Light Armor Plating > --- WEAPON ----------- Improved EM Shotgun Improved EM Shotgun Rocket Launcher > --- INVENTORY -------- Ion Engine Light Nuclear Core Carbon-fiber Leg Advanced Targeting Computer Recoil Stabilizer Hacking Suite Beam Cannon Light Assault Rifle Rocket Launcher [Rating: 23] Favorites ----------- Power Improved Ion Engine Engine Improved Ion Engine Power Core Light Nuclear Core Reactor Cold Fusion Reactor Propulsion Aluminum Leg Leg Aluminum Leg Utility Transport Network Coupler Device Improved Heat Sink Storage Medium Storage Unit Processor Transport Network Coupler Protection Light Armor Plating Weapon Light Assault Rifle Energy Gun Spread Laser Energy Cannon Beam Cannon Ballistic Gun Light Assault Rifle Launcher Rocket Launcher Build | -11 -10 -10 -9 -9 ------- Run | Yrd Mat Min Mat Sto Slots Evolved 2 | . . . 2 . Power . | . . . . . Propulsion . | . . . . . Utility 1 | . . . 1 . Weapon 1 | . . . 1 . Parts Attached 48 | 6 7 4 13 18 Power 7 | 1 1 . 2 3 Engine 5 | 1 1 . 2 1 Core 1 | . . . . 1 Reactor 1 | . . . . 1 Propulsion 15 | 2 2 2 3 6 Treads . | . . . . . Leg 15 | 2 2 2 3 6 Wheel . | . . . . . Hover . | . . . . . Flight . | . . . . . Utility 7 | 1 2 . 2 2 Device 1 | . . . 1 . Storage 2 | 1 1 . . . Processor 1 | . 1 . . . Hackware . | . . . . . Protection 3 | . . . 1 2 Artifact . | . . . . . Weapon 19 | 2 2 2 6 7 Energy Gun 7 | . 1 1 2 3 Energy Cannon 2 | . . . 1 1 Ballistic Gun 8 | 2 1 1 3 1 Ballistic Cannon . | . . . . . Launcher 2 | . . . . 2 Special Weapon . | . . . . . Impact Weapon . | . . . . . Slashing Weapon . | . . . . . Piercing Weapon . | . . . . . Special Melee Weapon . | . . . . . Unidentified Prototypes 3 | . . . . 3 Parts Lost 20 | . 2 . 2 16 Power 3 | . 1 . . 2 Propulsion 6 | . . . 1 5 Utility 3 | . . . . 3 Weapon 8 | . 1 . 1 6 Highest Loss Streak 5 | . 1 . 1 5 To Critical Strikes . | . . . . . Average Slot Usage (%) 95 | . 94 100 97 89 Engine 11 | . 13 14 11 5 Leg 23 | . 28 28 21 19 Device 4 | . . . 8 4 Storage 12 | . 14 14 11 11 Processor 11 | . 9 14 11 11 Protection 1 | . . . 1 2 Energy Gun 10 | . 3 14 10 14 Energy Cannon 1 | . . . 2 . Ballistic Gun 18 | . 24 14 18 13 Peak Build Rating 23 | 6 8 11 19 23 Average Rating 12 | 4 6 9 16 16 On Entrance 8 | . 6 8 11 16 Naked Turns . | . . . . . Heaviest Build 35 | 10 17 19 27 35 Greatest Support 28 | 20 20 25 28 25 Greatest Overweight (x) 3 | 3 1 . 2 3 Average Overweight (x) . | . . . . . Largest Inventory Capacity 10 | 8 10 10 10 10 Average Capacity 9 | 7 9 10 10 10 Most Carried 10 | 5 10 10 10 10 Average Carried 9 | 3 8 9 9 8 Final Capacity 10 | 8 10 10 10 10 Final Carried 10 | 4 10 10 10 8 Class Distribution -------------------- 46% | Scavenger-Skirmisher 35% | Mutant 10% | Scavenger-Mutant 5% | Scavenger-Tank Dominant Class ---------------- Mutant | -10/Materials Mutant | -10/Mines Scavenger-Skirmisher | -9/Materials Scavenger-Skirmisher | -9/Storage Resources | -11 -10 -10 -9 -9 ----------- Run | Yrd Mat Min Mat Sto Matter Collected 1177 | 178 222 52 353 372 Remotely . | . . . . . Salvage Created 2513 | . 354 197 1115 847 Parts 154 | . 24 10 77 43 Haulers Intercepted 2 | . 1 . 1 . Recyclers Shooed 1 | . 1 . . . Parts Field Recycled . | . . . . . Retrieved Matter . | . . . . . Parts Self-Destructed . | . . . . . Prevented . | . . . . . Kills | -11 -10 -10 -9 -9 ------- Run | Yrd Mat Min Mat Sto Combat Hostiles Destroyed 57 | . 8 4 25 20 Guns 53 | . 8 4 24 17 Cannons 1 | . . . 1 . AOE 3 | . . . . 3 Classes Destroyed 11 | . 4 . 6 1 Builder 4 | . . . 3 1 Hauler 2 | . 1 . 1 . Recycler 3 | . 1 . 1 1 Mechanic 2 | . . . 1 1 Operator 1 | . . . . 1 Watcher 2 | . . . 2 . Swarmer 12 | . 3 2 7 . Grunt 32 | . 5 2 9 16 Brawler 1 | . . . 1 . Duelist 2 | . . . 1 1 Sentry 10 | . . . 7 3 Best Kill Streak 9 | . 3 2 9 6 Combat Bots Only 5 | . 3 2 5 4 Max Kills in Single Turn 4 | . 1 1 3 4 Gunslinging . | . . . . . Exploded 2 | . . . . 2 Melee . | . . . . . Uniques/NPCs Destroyed . | . . . . . Combat | -11 -10 -10 -9 -9 -------- Run | Yrd Mat Min Mat Sto Hostile Shots Fired 303 | . 56 18 112 117 Missed 73 | . 16 5 31 21 Damage Taken 3310 | . 476 161 879 1794 Core 571 | . 110 57 134 270 Absorbed by Shields . | . . . . . Redirected to Shielding 2 | . . . 2 . Core Remaining (%) 66 | 100 . 33 . . Volleys Fired 173 | . 38 12 50 73 Largest 3 | . 2 2 3 3 Hottest 148 | . 40 60 148 111 Shots Fired 367 | . 75 24 135 133 Gun 336 | . 75 24 125 112 Cannon 10 | . . . 10 . Launcher 21 | . . . . 21 Special . | . . . . . Kinetic 249 | . 75 12 82 80 Thermal 85 | . . 12 53 20 Explosive 21 | . . . . 21 Electromagnetic 12 | . . . . 12 Robot Hit Streak 19 | . 19 7 12 10 Robot Miss Streak 5 | . 2 1 5 5 Penetration Max . | . . . . . Secondary Targets 4 | . . 1 1 2 Max Gunslinging Chain 1 | . . 1 1 1 Shots Hit Robots 231 | . 50 18 83 80 Core Hits 178 | . 22 9 81 66 Critical Kills 1 | . . . 1 . Critical Parts Destroyed . | . . . . . Critical Strikes 1 | . . . 1 . Destroy 1 | . . . 1 . Melee Attacks . | . . . . . Impact . | . . . . . Slashing . | . . . . . Piercing . | . . . . . Sneak Attacks . | . . . . . Combat Hostiles . | . . . . . Follow-up Attacks . | . . . . . Damage Inflicted 3629 | . 401 184 1361 1683 Guns 2866 | . 401 184 1290 991 Cannons 71 | . . . 71 . Explosions 692 | . . . . 692 Melee . | . . . . . Ramming . | . . . . . Kinetic 1696 | . 401 56 671 568 Thermal 1077 | . . 128 690 259 Explosive 692 | . . . . 692 Electromagnetic 164 | . . . . 164 Impact . | . . . . . Slashing . | . . . . . Piercing . | . . . . . Highest Corruption 7 | . . . . 7 Average Corruption 3 | . . . . 3 Corruption Purged . | . . . . . Corruption Blocked . | . . . . . Effects 7 | . . . . 7 Message Errors 2 | . . . . 2 Matter Fused 3 | . . . . 3 Heat Flow Errors 1 | . . . . 1 Energy Discharges 1 | . . . . 1 Overload Shots . | . . . . . Overflow Damage 13 | . . . . 13 Projectiles . | . . . . . Explosions 13 | . . . . 13 Melee . | . . . . . Knockbacks . | . . . . . Impact . | . . . . . Kinetic . | . . . . . Secondary . | . . . . . Self-Inflicted Damage 269 | . . . . 269 Shots 14 | . . . . 14 Rammed . | . . . . . Targets Rammed . | . . . . . Kicked . | . . . . . Crushed . | . . . . . Highest Temperature 460 | . 27 49 353 460 Average Temperature 98 | . 9 19 57 175 Received Heat Transfer 1350 | . 234 69 300 747 Effects 7 | . . . 1 6 Shutdowns 3 | . . . 1 2 Energy Bleed 1 | . . . . 1 Matter Decay 1 | . . . . 1 Damage (minor) 2 | . . . . 2 Siege Activations . | . . . . . Robots Corrupted . | . . . . . Combat Hostiles . | . . . . . Parts Fried . | . . . . . Impact Corruptions . | . . . . . Robots Melted . | . . . . . Combat Hostiles . | . . . . . Parts Melted . | . . . . . Heat Transferred 1696 | . . 275 1076 345 Parts Sabotaged . | . . . . . Parts Stolen . | . . . . . Parts Stripped . | . . . . . Power Chain Reactions . | . . . . . Alert | -11 -10 -10 -9 -9 ------- Run | Yrd Mat Min Mat Sto Peak Influence 435 | . 214 191 317 435 Initial 83 | . . 83 20 69 Average 136 | . 101 101 112 268 Maximum Alert Level 2 | . 1 . 1 2 Low Security (%) 78 | 100 81 100 88 30 Level 1 20 | . 18 . 11 61 Level 2 1 | . . . . 8 Level 3 . | . . . . . Level 4 . | . . . . . Level 5 . | . . . . . High Security . | . . . . . Max Security . | . . . . . Squads Dispatched 12 | . 1 . 2 9 Investigation 5 | . 1 . 1 3 Extermination . | . . . . . Reinforcement 2 | . . . 1 1 Assault 2 | . . . . 2 Garrison 3 | . . . . 3 Intercept . | . . . . . Searches Triggered . | . . . . . Construction Impeded 1 | . . . . 1 Haulers Reinforced . | . . . . . Active Scanning Responses . | . . . . . Cargo Convoy Interrupts . | . . . . . Stealth | -11 -10 -10 -9 -9 --------- Run | Yrd Mat Min Mat Sto Distress Signals 6 | . 3 . 3 . Communications Jammed . | . . . . . Distress Signals . | . . . . . Times Spotted 89 | . 19 5 38 27 Peak Tracking Total 7 | . 4 3 7 7 Tactical Retreats 3 | . 2 . 1 . Traps | -11 -10 -10 -9 -9 ------- Run | Yrd Mat Min Mat Sto Traps Triggered 5 | . 3 . . 2 Indirectly . | . . . . . Trap Hack Attempts . | . . . . . Triggered . | . . . . . Disarmed 1 | . . . 1 . Reprogrammed . | . . . . . Reused . | . . . . . Traps Extracted . | . . . . . Installed 1 | . . . 1 . Triggered . | . . . . . Most Traps Carried 2 | . . 2 1 . Machines | -11 -10 -10 -9 -9 ---------- Run | Yrd Mat Min Mat Sto Machines Disabled 1 | . . . . 1 Max in Single Turn 1 | . . . . 1 Machines Repaired . | . . . . . Machines Dismantled . | . . . . . Machines Sabotaged . | . . . . . Overloaded Fab Kills . | . . . . . Hacking | -11 -10 -10 -9 -9 --------- Run | Yrd Mat Min Mat Sto Machines Accessed 15 | . 5 . 5 5 Terminals 12 | . 4 . 4 4 Fabricators . | . . . . . Repair Stations . | . . . . . Recycling Units 1 | . 1 . . . Scanalyzers 1 | . . . 1 . Garrison Access 1 | . . . . 1 Total Hacks 39 | . 15 . 12 12 Successful 22 | . 10 . 8 4 Failed 17 | . 5 . 4 8 Catastrophic 5 | . 1 . 2 2 Database Lockouts . | . . . . . Manual 31 | . 7 . 10 14 Terminals 33 | . 13 . 11 9 Fabricators . | . . . . . Repair Stations . | . . . . . Recycling Units 2 | . 2 . . . Scanalyzers 1 | . . . 1 . Garrison Access 3 | . . . . 3 Terminal Hacks 12 | . 5 . 5 2 Robot Analysis 2 | . 2 . . . Open Door 1 | . . . . 1 Branch Access Points 1 | . . . . 1 Scanalyzer Index 1 | . 1 . . . Alert Level 1 | . 1 . . . Unreport Threat 2 | . . . 2 . Locate Traps 1 | . . . 1 . Disarm Traps 1 | . . . 1 . Maintenance Status 1 | . . . 1 . Hauler Manifests 1 | . 1 . . . Fabricator Hacks . | . . . . . Repair Station Hacks . | . . . . . Recycling Unit Hacks 1 | . 1 . . . Report Inventory 1 | . 1 . . . Scanalyzer . | . . . . . Garrison Access Hacks . | . . . . . Unauthorized Hacks 9 | . 4 . 3 2 Terminals 7 | . 3 . 2 2 Botnet 5 | . 2 . 1 2 Operators 2 | . 1 . 1 . Fabricators . | . . . . . Repair Stations . | . . . . . Recycling Units 1 | . 1 . . . Tunnel 1 | . 1 . . . Scanalyzers 1 | . . . 1 . Extract 1 | . . . 1 . Garrison Access . | . . . . . Data Cores Recovered 1 | . . . . 1 Used . | . . . . . Hacking Detections 11 | . 4 . 2 5 Full Trace Events 2 | . . . . 2 Feedback Events 1 | . . . . 1 Corruption 1 | . . . . 1 Feedback Blocked . | . . . . . Robot Schematics Acquired . | . . . . . Robots Built . | . . . . . Authchips . | . . . . . Time . | . . . . . Total Robot Build Rating . | . . . . . Part Schematics Acquired 5 | . . . 5 . Parts Built . | . . . . . Authchips . | . . . . . Time . | . . . . . Total Part Build Rating . | . . . . . Parts Repaired . | . . . . . Time . | . . . . . Parts Recycled . | . . . . . Recycled Matter . | . . . . . Retrieved Matter . | . . . . . Retrieved Components . | . . . . . Parts Scanalyzed . | . . . . . Part Schematics Acquired . | . . . . . Parts Damaged . | . . . . . Bothacking | -11 -10 -10 -9 -9 ------------ Run | Yrd Mat Min Mat Sto Used RIF Installer . | . . . . . Robots Hacked . | . . . . . Non-combat . | . . . . . Combat . | . . . . . Robot Hacks Applied . | . . . . . Relay Couplers Released . | . . . . . Fabnet Peak Effective % . | . . . . . Robots Rewired . | . . . . . Allies Hacked . | . . . . . Hacks Repelled . | . . . . . Allies | -11 -10 -10 -9 -9 -------- Run | Yrd Mat Min Mat Sto Total Allies 4 | . . 2 . 2 Largest Group 2 | . . 2 1 2 Highest-Rated Group 62 | . . 41 10 62 Highest-Rated Ally 31 | . . 31 10 31 Total Orders . | . . . . . Ally Attacks 22 | . . 11 . 11 Total Damage 401 | . . 189 . 212 Kills 3 | . . 1 . 2 Allies Corrupted . | . . . . . Allies Melted . | . . . . . Intel | -11 -10 -10 -9 -9 ------- Run | Yrd Mat Min Mat Sto Robot Analysis Total 2 | . 2 . . . Derelict Logs Recovered 2 | . . 2 . . Drone Launches . | . . . . . Drone Recoveries . | . . . . . Exploration | -11 -10 -10 -9 -9 ------------- Run | Yrd Mat Min Mat Sto Turns Passed 3628 | 59 734 633 1496 706 Spaces Moved 2006 | 36 484 449 753 284 Core 19 | 9 . . . 10 Treads . | . . . . . Legs 1987 | 27 484 449 753 274 Wheels . | . . . . . Hover . | . . . . . Flight . | . . . . . Fastest Speed 50 | 50 120 120 120 120 Average Speed 141 | 120 120 120 159 164 Slowest Speed 260 | 200 190 120 260 260 Overloaded Moves . | . . . . . Propulsion Burnouts . | . . . . . Robots Hopped . | . . . . . Cave-ins Triggered 1 | . . . . 1 Exploration Rate (%) 55 | 4 81 87 61 43 Regions Visited 4 Branch Regions 2 Pre-discovered Areas 2 | . 1 1 . . Known Exits Taken 1 | . . . 1 . Unknown Exits Taken 3 | 1 1 1 . . Scrap Searched 1 | . . 1 . . Spaces Dug 8 | . . . . 8 Terrain Destroyed 87 | . . . . 87 Melee . | . . . . . Projectile . | . . . . . AOE 87 | . . . . 87 Terrain Rammed . | . . . . . Walls Destroyed . | . . . . . Machines Disabled . | . . . . . Actions | -11 -10 -10 -9 -9 --------- Run | Yrd Mat Min Mat Sto Total 2519 | 49 574 525 956 415 Wait 231 | 2 38 46 119 26 Move 2001 | 35 483 448 752 283 Hop . | . . . . . Pick Up 31 | 5 7 6 7 6 Fast Attach 18 | 6 3 . 2 7 Attach 13 | . 2 . 3 8 Detach 4 | . . . 2 2 Swap 17 | . 2 4 8 3 Drop 29 | 1 1 9 12 6 Fire 173 | . 38 12 50 73 Melee . | . . . . . Ram . | . . . . . Kick . | . . . . . Crush . | . . . . . Escape Stasis 1 | . . . . 1 Rewire . | . . . . . Trap 1 | . . . 1 . Miscellaneous . | . . . . . Route ------- -11/Scrapyard -10/Materials (discovered 4 exits: *Mat x3 / [*Min]) -10/Mines -9/Materials (discovered 3 exits: [*Mat] / [*Min] / *Sto) -9/Storage (discovered 1 exit: Rec) History --------- Turn | Location | Event 22 | -11/Scrapyard | Discovered new exit (range 16) 60 | -11/Scrapyard | Entered Materials 302 | -10/Materials | Build established: Mutant 331 | -10/Materials | Discovered new exit (range 6) 430 | -10/Materials | Discovered new exit (range 4) 710 | -10/Materials | Discovered new exit (range 12) 722 | -10/Materials | Discovered new exit (range 15) 794 | -10/Materials | Entered Mines 801 | -10/Mines | Received a Rocket Launcher from a helpful Derelict 820 | -10/Mines | Found a hidden stash of uninstalled traps 962 | -10/Mines | Core integrity fell below 50% 1028 | -10/Mines | Learned location of Storage (-9) 1399 | -10/Mines | Discovered new exit (range 8) 1427 | -10/Mines | Entered Materials 1427 | -9/Materials | Accompanied by 1 ally 1427 | -9/Materials | Evolved 2 slots: Utility x1, Weapon x1 1428 | -9/Materials | Identified exit to Storage 1886 | -9/Materials | Build established: Scavenger-Skirmisher 2323 | -9/Materials | Discovered new exit (range 16) 2620 | -9/Materials | Discovered new exit (range 16) 2923 | -9/Materials | Entered Storage 2978 | -9/Storage | Garrison activated, responded to threat 3142 | -9/Storage | Met a pair of Derelict thieves 3274 | -9/Storage | Lost 5 parts (2n1u2w) 3369 | -9/Storage | Core integrity fell below 50% 3414 | -9/Storage | Identified exit to Recycling 3508 | -9/Storage | Crushed by falling debris 3548 | -9/Storage | Core integrity fell below 20% 3581 | -9/Storage | Lost 3 parts (1u2w) 3629 | -9/Storage | Destroyed by G-34 Mercenary with Small Laser Last Messages --------------- 03576_ U-05 Engineer lays Concrete. 03577_ K-01 Serf collects debris. 03578_ U-05 Engineer builds a Wall. 03581_ K-01 Serf collects debris. 03593_ Rocket Launcher destroyed. 03597_ System corrupted: Matter fused (-8). 03601_ Cold Fusion Reactor destroyed. 03602_ The unstable cave ceiling collapses. 03605_ U-05 Engineer lays Concrete. 03605_ Rocket Launcher destroyed. 03606_ U-05 Engineer lays Concrete. 03607_ U-05 Engineer builds a Wall. 03609_ Carbon-fiber Leg destroyed. 03610_ U-05 Engineer lays Concrete. 03611_ M-13 Machinist repairs G-34 Mercenary. 03612_ U-05 Engineer builds a Wall. 03613_ U-05 Engineer builds a Door. 03614_ U-05 Engineer builds a Wall. 03618_ M-13 Machinist repairs G-34 Mercenary. 03622_ System corrupted: Energy discharge (-31). Map ----- +----------------------------------------------------+ | ???????????# !! """ # ##########??? | | ???????????# !! """ # # ]#??? | | ???????????# !! # # """ #??? | | ???????????########## # """ ###? | | ????????????????????# # """ ""#? | | ????????????????????# %+ T"#? | | ????????????????????# # """ ""#? | | ????????????????????# # """ ###? | | ?????????????####???# %+[ """ #??? | | ?????????????#"""#??# #* #??? | | ?????????????#"R"#??# ##########??? | | ??????????####" "#### #??######???? | | ??????????# # ####/] ]#???? | | ??????????# [ # ##T#%] [#???? | | ??????????# *# #% " #???? | | ??????????# """ """%+% %+ % = #???? | | ??????????# """ """%# #% " #???? | | ??????????# """ """[# # *#!! [#???? | | ??????????# # #########???? | | ??????????# # #???????????? | | ??????????##" "## ### #???????????? | | ???????????#"G"####?# #???????????? | | ???????????# " #????# #???????????? | | ???????????#####????# #???????????? | | ?????????????????#### ####?####???? | | ?????????????????? # #@ #!!]]#???? | | ??????????????????" # a # " ]]#???? | | ??????????????????" # #g ]]#???? | | ?a????????????????" + g " #???? | | ??????????????????" # ##T# ]]]#???? | | ???#???????????"""" # ####?]]]#???? | | ???# ?????# """ # #?????###???? | | ???+ ????# # ######?##???? | | ???# ???########+##a ##"T"##*###?? | | ???# ????????## # %! #?? | | ???# ??????## # %! #?? | | ????? ????## # !! #?? | | ???# ##### % ! #?? | | ???# + ##+########?? | | ???????#### # % #??? | | ??????##### # ####/###### #??? | | ??????# + % # #??? | | ??????# #### + #??? | | ??????# ???# ####+#??? | | ??????# ???# ###T #??? | | ??????# ???# ### #??? | | ??????# ????# #?# #??? | | ??????# ????# ##?###??? | | ??????# ????######+######???????? | | ??????# ??????# ## #[ ###???????? | +----------------------------------------------------+ Best States ------------- Heat Dissipation 42 Energy Generation 17 Energy Capacity 265 Matter Stores 300 Matter Capacity 300 Sight Range 16 Terrain Scan Density 10 Armor Coverage 150 Core Shielding 20 Evasion (%) 55 Item Schematics ----------------- Aluminum Leg | -9/Materials | Extracted Seismic Detector | -9/Materials | Extracted Targeting Computer | -9/Materials | Extracted Med. Armor Plating | -9/Materials | Extracted Shotgun | -9/Materials | Extracted Robot Schematics ------------------ None Fabricated ------------ Nothing Alien Tech Used ----------------- None Achievements -------------- None Challenges ------------ None Game ------ Seed ChargeMissileSource Manual? 0 Play Time 00:28:42 Cumulative 62.6 hours Start 2025.03.13 @ 22:09:16 End 2025.03.13 @ 22:37:13 Sessions 2 Manual Loads 0 Difficulty Rogue Special Mode None Game No. 63 Rogue 63 Adventurer 0 Explorer 0 Win Type - Total 1 Types 1/0/0/0/0/0/0/0/0 Lore% 31 Gallery% 44 Achievement% 41 Wizard Run 0 Options --------- Layout 1 ASCII 0 Keyboard 1 Movement Numpad Keybinds 0 Fullscreen 1 Font 24/Smallcaps Map View 50x35 Zoom Use 0% Tactical HUD 1 Map Filters NONE Filters NONE Steam 1 RUN: 74e95c12-43d3-4aca-a46b-f616ea041207